[Event "Marshall CC FIDE Premier January 2024"]
[Site "New York"]
[Date "2024.01.06"]
[Round "2.4"]
[White "Lin, Bryan Enming"]
[Black "Levin, Anthony"]
[Result "1-0"]
[ECO "C42"]
[WhiteElo "2102"]
[BlackElo "1845"]
[Annotator "RC"]
[PlyCount "101"]
[EventDate "2024.01.05"]
[EventType "swiss"]
[EventCountry "USA"]
[SourceTitle "playchess.com"]
[Source "ChessBase"]
[SourceQuality "1"]
[TimeControl "5400+30"]

1. e4 {[%emt 0:00:04]} e5 {[%emt 0:00:13]} 2. Nf3 {[%emt 0:00:09]} Nf6 {[%emt 0:00:05]} 3. Nc3 {[%emt 0:00:17]} Bb4 {[%emt 0:00:07]} 4. Nxe5 {[%emt 0:00:21]} O-O {[%emt 0:00:05]} 5. Nd3 {[%emt 0:00:34]} Bxc3 {[%emt 0:00:06]} 6. dxc3 {[%emt 0:00:06]} Nxe4 {[%emt 0:00:04]} 7. Be2 {[%emt 0:00:26]} d6 {[%emt 0:00:12]} 8. O-O {[%emt 0:00:25]} Nd7 {[%emt 0:00:23]} 9. Re1 {[%emt 0:01:05]} Re8 {[%emt 0:01:51]} 10. Bf3 {[%emt 0:00:49]} Ndf6 {[%emt 0:00:11]} 11. Nf4 {[%emt 0:02:33]} b6 {[%emt 0:06:57]} 12. Be3 {[%emt 0:11:36]} Bb7 {[%emt 0:00:56]} 13. c4 {[%emt 0:11:37]} a5 {[%emt 0:08:48]} 14. a4 {[%emt 0:02:33]} h6 {[%emt 0:09:49]} 15. b3 {[%emt 0:01:08]} Nc5 {[%emt 0:11:42]} 16. Bxb7 {[%emt 1:04:47]} Nxb7 {[%emt 0:00:10]} 17. Qf3 {[%emt 0:00:00]} Nc5 {[%emt 0:02:54]} 18. Bd4 {[%emt 0:00:00]} Ncd7 {[%emt 0:07:33]} 19. Rad1 {[%emt 0:00:00]} Qc8 {[%emt 0:04:24]} 20. Nd3 {[%emt 0:00:00]} c5 {[%emt 0:05:59]} 21. Bb2 {[%emt 0:00:00]} Qc7 {[%emt 0:00:44]} 22. Nf4 {[%emt 0:00:00]} Rxe1+ {[%emt 0:04:21]} 23. Rxe1 {[%emt 0:00:00]} Re8 {[%emt 0:00:04]} 24. Rxe8+ {[%emt 0:00:00]} Nxe8 {[%emt 0:00:05]} 25. Nd5 {[%emt 0:00:00]} Qd8 {[%emt 0:00:23]} 26. Qe4 {[%emt 0:00:00]} Nef6 {[%emt 0:03:42]} 27. Qe7 {[%emt 0:00:00]} Qxe7 {[%emt 0:01:29]} 28. Nxe7+ {[%emt 0:00:00]} Kf8 {[%emt 0:00:03]} 29. Bxf6 {[%emt 0:00:00]} Nxf6 {[%emt 0:00:48]} 30. Nc8 {[%emt 0:00:00]} Nd7 {[%emt 0:00:50]} 31. f3 {[%emt 0:00:00]} Ke8 {[%emt 0:03:11]} 32. Kf2 {[%emt 0:00:00]} Kd8 {[%emt 0:00:05]} 33. Nxd6 {[%emt 0:00:00]} Ke7 {[%emt 0:00:09]} 34. Nf5+ {[%emt 0:00:00]} Kf6 {[%emt 0:00:05]} 35. Ne3 {[%emt 0:00:00]} Ke5 {[%emt 0:01:04]} 36. Nd5 {[%emt 0:00:00]} h5 {[%emt 0:04:56]} 37. h4 {[%emt 0:00:00]} Kd4 {[%emt 0:03:08]} 38. Ke2 {[%emt 0:00:00]} g6 {[%emt 0:01:04]} 39. c3+ {[%emt 0:00:00]} Ke5 {[%emt 0:00:08]} 40. Ke3 {[%emt 0:00:00]} Kf5 {[%emt 0:01:25]} 41. g3 {[%emt 0:00:00]} g5 {[%emt 0:04:37]} 42. hxg5 {[%emt 0:00:00]} Kxg5 {[%emt 0:00:05]} 43. Ke4 {[%emt 0:00:00]} f6 {[%emt 0:06:31]} 44. Ne3 {[%emt 0:00:00]} h4 {[%emt 0:01:45]} 45. f4+ {[%emt 0:00:00]} Kh5 {[%emt 0:00:07]} 46. gxh4 {[%emt 0:00:00]} Kxh4 {[%emt 0:00:11]} 47. Kf5 {[%emt 0:00:00]} Kg3 {[%emt 0:00:12]} 48. Nd5 {[%emt 0:00:00]} Kf3 {[%emt 0:04:40]} 49. Nxf6 {[%emt 0:00:00]} Nf8 {[%emt 0:01:03]} 50. Nd5 {[%emt 0:00:00]} Ke2 {[%emt 0:00:05]} 51. Nxb6 {[%emt 0:00:00]} 1-0

[Event "Marshall CC FIDE Premier January 2024"]
[Site "New York"]
[Date "2024.01.06"]
[Round "2.5"]
[White "Klein, Ethan"]
[Black "Brain, Logan"]
[Result "0-1"]
[ECO "D91"]
[WhiteElo "1923"]
[BlackElo "2111"]
[Annotator "RC"]
[PlyCount "72"]
[EventDate "2024.01.05"]
[EventType "swiss"]
[EventCountry "USA"]
[SourceTitle "playchess.com"]
[Source "ChessBase"]
[SourceQuality "1"]
[TimeControl "5400+30"]

1. d4 {[%emt 0:00:02]} Nf6 {[%emt 1:31:00]} 2. c4 {[%emt 0:00:15]} g6 {[%emt 0:00:00]} 3. Nc3 {[%emt 0:00:04]} d5 {[%emt 0:00:00]} 4. Bg5 {[%emt 0:00:08]} Bg7 {[%emt 0:00:00]} 5. Nf3 {[%emt 0:00:13]} Ne4 {[%emt 0:00:00]} 6. Bh4 {[%emt 0:00:06]} Nxc3 {[%emt 0:00:00]} 7. bxc3 {[%emt 0:00:05]} dxc4 {[%emt 0:00:00]} 8. e3 {[%emt 0:00:11]} b5 {[%emt 0:00:00]} 9. a4 {[%emt 0:01:08]} c6 {[%emt 0:00:00]} 10. Qb1 {[%emt 0:00:29]} a6 {[%emt 0:00:00]} 11. Be2 {[%emt 0:00:39]} O-O {[%emt 0:00:00]} 12. O-O {[%emt 0:00:24]} Ra7 {[%emt 0:00:00]} 13. Bxc4 {[%emt 0:06:16]} bxc4 {[%emt 0:00:00]} 14. Qxb8 {[%emt 0:00:09]} Rb7 {[%emt 0:00:00]} 15. Qf4 {[%emt 0:02:01]} f6 {[%emt 0:00:00]} 16. Qe4 {[%emt 0:03:09]} Qd6 {[%emt 0:00:00]} 17. Qc2 {[%emt 0:05:41]} Bf5 {[%emt 0:00:00]} 18. e4 {[%emt 0:02:13]} Bg4 {[%emt 0:00:00]} 19. Qe2 {[%emt 0:07:21]} Qe6 {[%emt 0:00:00]} 20. h3 {[%emt 0:05:59]} Bxf3 {[%emt 0:00:00]} 21. Qxf3 {[%emt 0:00:06]} Rb3 {[%emt 0:00:00]} 22. Bg3 {[%emt 0:11:51]} f5 {[%emt 0:00:00]} 23. e5 {[%emt 0:01:59]} Bh6 {[%emt 0:00:00]} 24. Rfb1 {[%emt 0:18:28]} Rfb8 {[%emt 0:00:00]} 25. Qd1 {[%emt 0:01:08]} Qd5 {[%emt 0:00:00]} 26. Bh4 {[%emt 0:04:20]} Qe4 {[%emt 0:00:00]} 27. Rxb3 {[%emt 0:00:40]} cxb3 {[%emt 0:00:00]} 28. Bxe7 {[%emt 0:03:31]} b2 {[%emt 0:00:00]} 29. Rb1 {[%emt 0:01:45]} Bc1 {[%emt 0:00:00]} 30. Qf1 {[%emt 0:01:59]} Qxb1 {[%emt 0:00:00]} 31. Qc4+ {[%emt 0:00:09]} Kg7 {[%emt 0:00:00]} 32. Bf6+ {[%emt 0:00:14]} Kh6 {[%emt 0:00:00]} 33. Kh2 {[%emt 0:01:33]} Bf4+ {[%emt 0:00:00]} 34. g3 {[%emt 0:00:06]} Bxg3+ {[%emt 0:00:00]} 35. Kxg3 {[%emt 0:01:31]} Qg1+ {[%emt 0:00:00]} 36. Kf3 {[%emt 0:00:09]} b1=Q {[%emt 0:00:00]} 0-1

[Event "Marshall CC FIDE Premier January 2024"]
[Site "New York"]
[Date "2024.01.07"]
[Round "3.1"]
[White "Bortnyk, Mykola"]
[Black "Lin, Bryan Enming"]
[Result "1-0"]
[ECO "C86"]
[WhiteElo "2421"]
[BlackElo "2102"]
[Annotator "RC"]
[PlyCount "53"]
[EventDate "2024.01.05"]
[EventType "swiss"]
[EventCountry "USA"]
[SourceTitle "playchess.com"]
[Source "ChessBase"]
[SourceQuality "1"]
[TimeControl "5400+30"]

1. e4 {[%emt 0:00:21]} e5 {[%emt 0:00:06]} 2. Nf3 {[%emt 0:00:13]} Nc6 {[%emt 0:00:05]} 3. Bb5 {[%emt 0:00:16]} a6 {[%emt 0:00:05]} 4. Ba4 {[%emt 0:00:04]} Nf6 {[%emt 0:00:04]} 5. O-O {[%emt 0:00:09]} Be7 {[%emt 0:00:02]} 6. Qe2 {[%emt 0:00:08]} b5 {[%emt 0:00:58]} 7. Bb3 {[%emt 0:00:02]} O-O {[%emt 0:02:57]} 8. c3 {[%emt 0:00:31]} d6 {[%emt 0:02:47]} 9. d4 {[%emt 0:00:35]} Bg4 {[%emt 0:03:10]} 10. Rd1 {[%emt 0:01:42]} exd4 {[%emt 0:04:17]} 11. cxd4 {[%emt 0:00:30]} d5 {[%emt 0:01:33]} 12. exd5 {[%emt 0:02:33]} Nb4 {[%emt 0:01:27]} 13. h3 {[%emt 0:03:06]} Bc8 {[%emt 0:02:39]} 14. Nc3 {[%emt 0:01:57]} Bb7 {[%emt 0:00:15]} 15. Bg5 {[%emt 0:00:08]} Re8 {[%emt 0:01:19]} 16. Re1 {[%emt 0:01:09]} h6 {[%emt 0:25:33]} 17. Bh4 {[%emt 0:05:27]} g5 {[%emt 0:01:20]} 18. Bg3 {[%emt 0:01:02]} Nbxd5 {[%emt 0:00:33]} 19. Ne5 {[%emt 0:00:33]} c6 {[%emt 0:02:28]} 20. Qf3 {[%emt 0:02:27]} Qb6 {[%emt 0:10:20]} 21. Ne4 {[%emt 0:01:13]} Kg7 {[%emt 0:01:23]} 22. h4 {[%emt 0:04:56]} Qxd4 {[%emt 0:02:23]} 23. hxg5 {[%emt 0:01:47]} hxg5 {[%emt 0:00:19]} 24. Rad1 {[%emt 0:00:15]} Qxb2 {[%emt 0:01:35]} 25. Qf5 {[%emt 0:02:23]} Rg8 {[%emt 0:05:05]} 26. Bxd5 {[%emt 0:00:13]} cxd5 {[%emt 0:00:18]} 27. Qxg5+ {[%emt 0:00:06]} 1-0

[Event "Marshall CC FIDE Premier January 2024"]
[Site "New York"]
[Date "2024.01.07"]
[Round "3.3"]
[White "Brain, Logan"]
[Black "Uyanga, Byambaa"]
[Result "1-0"]
[ECO "E92"]
[WhiteElo "2111"]
[BlackElo "2046"]
[Annotator "ChessBase"]
[PlyCount "73"]
[EventDate "2024.01.05"]
[EventType "swiss"]
[EventCountry "USA"]
[SourceTitle "playchess.com"]
[Source "ChessBase"]
[SourceQuality "1"]
[TimeControl "5400+30"]

1. d4 {[%emt 0:00:07]} Nf6 {[%emt 0:00:04]} 2. c4 {[%emt 0:00:03]} g6 {[%emt 0:00:04]} 3. Nc3 {[%emt 0:00:03]} Bg7 {[%emt 0:00:08]} 4. e4 {[%emt 0:00:03]} d6 {[%emt 0:00:04]} 5. Nf3 {[%emt 0:00:03]} O-O {[%emt 0:00:12]} 6. Be2 {[%emt 0:00:04]} e5 {[%emt 0:00:13]} 7. Be3 {[%emt 0:00:10]} Ng4 {[%emt 0:00:56]} 8. Bg5 {[%emt 0:00:04]} f6 {[%emt 0:00:05]} 9. Bc1 {[%emt 0:00:04]} Nc6 {[%emt 0:05:43]} 10. d5 {[%emt 0:03:48]} Ne7 {[%emt 0:00:10]} 11. h3 {[%emt 0:00:38]} Nh6 {[%emt 0:00:06]} 12. g4 {[%emt 0:02:04]} Nf7 {[%emt 0:02:15]} 13. Rg1 {[%emt 0:03:48]} c6 {[%emt 0:03:23]} 14. Be3 {[%emt 0:04:58]} cxd5 {[%emt 0:03:13]} 15. cxd5 {[%emt 0:00:14]} Bd7 {[%emt 0:00:09]} 16. Qb3 {[%emt 0:02:10]} Qb8 {[%emt 0:06:36]} 17. Bb5 {[%emt 0:03:15]} Bc8 {[%emt 0:04:07]} 18. O-O-O {[%emt 0:03:06]} a6 {[%emt 0:00:31]} 19. Bd3 {[%emt 0:00:23]} b5 {[%emt 0:00:19]} 20. Kb1 {[%emt 0:00:28]} Bh6 {[%emt 0:00:54]} 21. Bxh6 {[%emt 0:04:40]} Nxh6 {[%emt 0:00:05]} 22. Rc1 {[%emt 0:08:28]} Bd7 {[%emt 0:01:37]} 23. g5 {[%emt 0:06:34]} fxg5 {[%emt 0:03:40]} 24. Nxe5 {[%emt 0:01:26]} Bxh3 {[%emt 0:04:18]} 25. Rh1 {[%emt 0:04:46]} g4 {[%emt 0:08:43]} 26. Nd7 {[%emt 0:03:05]} Qa7 {[%emt 0:00:04]} 27. Nxf8 {[%emt 0:00:10]} Rxf8 {[%emt 0:00:06]} 28. e5 {[%emt 0:01:03]} Qd4 {[%emt 0:05:11]} 29. Rcd1 {[%emt 0:02:57]} Qxe5 {[%emt 0:00:17]} 30. Rhe1 {[%emt 0:00:20]} Qg7 {[%emt 0:04:52]} 31. Ne4 {[%emt 0:01:17]} Bg2 {[%emt 0:07:22]} 32. Nxd6 {[%emt 0:04:28]} Rxf2 {[%emt 0:00:33]} 33. Ne4 {[%emt 0:01:18]} Bxe4 {[%emt 0:00:53]} 34. Bxe4 {[%emt 0:00:10]} Nf7 {[%emt 0:18:54]} 35. d6 {[%emt 0:01:11]} Nf5 {[%emt 0:02:38]} 36. Bxf5 {[%emt 0:00:24]} gxf5 {[%emt 0:01:13]} 37. Re8+ {[%emt 0:00:17]} 1-0

[Event "Marshall CC FIDE Premier January 2024"]
[Site "New York"]
[Date "2024.01.07"]
[Round "3.4"]
[White "Ho, Carter"]
[Black "Nkululeko, Nkosi"]
[Result "1/2-1/2"]
[ECO "C55"]
[WhiteElo "2180"]
[BlackElo "1867"]
[Annotator "RC"]
[PlyCount "80"]
[EventDate "2024.01.05"]
[EventType "swiss"]
[EventCountry "USA"]
[SourceTitle "playchess.com"]
[Source "ChessBase"]
[SourceQuality "1"]
[TimeControl "5400+30"]

1. e4 {[%emt 0:00:09]} e5 {[%emt 0:00:45]} 2. Nf3 {[%emt 0:00:16]} Nc6 {[%emt 0:00:55]} 3. Bc4 {[%emt 0:00:24]} Nf6 {[%emt 0:00:18]} 4. d3 {[%emt 0:00:06]} Be7 {[%emt 0:00:46]} 5. O-O {[%emt 0:01:52]} O-O {[%emt 0:00:07]} 6. Re1 {[%emt 0:00:13]} d6 {[%emt 0:01:15]} 7. a4 {[%emt 0:01:27]} Bg4 {[%emt 0:00:39]} 8. h3 {[%emt 0:01:23]} Bd7 {[%emt 0:03:13]} 9. c3 {[%emt 0:00:30]} Na5 {[%emt 0:02:26]} 10. Ba2 {[%emt 0:01:18]} Qe8 {[%emt 0:00:22]} 11. b4 {[%emt 0:01:27]} Nc6 {[%emt 0:03:11]} 12. Nbd2 {[%emt 0:00:26]} Kh8 {[%emt 0:02:18]} 13. b5 {[%emt 0:05:02]} Na5 {[%emt 0:00:27]} 14. d4 {[%emt 0:00:34]} Bd8 {[%emt 0:00:29]} 15. Ba3 {[%emt 0:01:00]} Be7 {[%emt 0:10:18]} 16. Bb4 {[%emt 0:04:07]} b6 {[%emt 0:00:12]} 17. Bxa5 {[%emt 0:02:40]} bxa5 {[%emt 0:00:02]} 18. Nc4 {[%emt 0:01:36]} Nxe4 {[%emt 0:07:38]} 19. Rxe4 {[%emt 0:00:38]} f5 {[%emt 0:00:06]} 20. Re1 {[%emt 0:02:09]} e4 {[%emt 0:00:22]} 21. Nfd2 {[%emt 0:02:48]} Bh4 {[%emt 0:02:48]} 22. Nxa5 {[%emt 0:07:22]} Qg6 {[%emt 0:00:40]} 23. Bd5 {[%emt 0:01:20]} Rae8 {[%emt 0:00:37]} 24. Bc6 {[%emt 0:01:15]} Bxc6 {[%emt 0:01:49]} 25. Nxc6 {[%emt 0:01:13]} h5 {[%emt 0:01:23]} 26. Qc2 {[%emt 0:05:11]} Rf6 {[%emt 0:03:32]} 27. Qd1 {[%emt 0:08:57]} f4 {[%emt 0:12:55]} 28. Nxe4 {[%emt 0:12:55]} Rxe4 {[%emt 0:01:42]} 29. Re2 {[%emt 0:36:42]} Re3 30. Rxe3 {[%emt 0:00:00]} f3 {[%emt 0:04:11]} 31. Re4 {[%emt 0:00:00]} Qf5 {[%emt 0:40:34]} 32. Qf1 Qxe4 {[%emt 0:00:00]} 33. g3 {[%emt 0:00:00]} Bxg3 {[%emt 0:00:00]} 34. fxg3 {[%emt 0:00:00]} f2+ {[%emt 0:00:00]} 35. Kh2 {[%emt 0:00:00]} h4 {[%emt 0:00:00]} 36. g4 {[%emt 0:00:00]} Qf4+ {[%emt 0:00:00]} 37. Kh1 {[%emt 0:00:00]} Qe4+ {[%emt 0:00:00]} 38. Kh2 {[%emt 0:00:00]} Qf4+ {[%emt 0:00:00]} 39. Kh1 {[%emt 0:00:00]} Qe4+ {[%emt 0:00:00]} 40. Kh2 {[%emt 0:00:00]} Qf4+ {[%emt 0:00:00]} 1/2-1/2

[Event "Marshall CC FIDE Premier January 2024"]
[Site "New York"]
[Date "2024.01.07"]
[Round "3.5"]
[White "Chin, Spencer"]
[Black "Hoffman, Luc"]
[Result "1-0"]
[ECO "A50"]
[WhiteElo "1919"]
[BlackElo "2068"]
[Annotator "ChessBase"]
[PlyCount "190"]
[EventDate "2024.01.05"]
[EventType "swiss"]
[EventCountry "USA"]
[SourceTitle "playchess.com"]
[Source "ChessBase"]
[SourceQuality "1"]
[TimeControl "5400+30"]

1. d4 {[%emt 0:00:16]} Nf6 {[%emt 0:00:05]} 2. c4 {[%emt 0:00:24]} b6 {[%emt 0:00:04]} 3. Nc3 {[%emt 0:00:22]} Bb7 {[%emt 0:00:15]} 4. f3 {[%emt 0:02:13]} d5 {[%emt 0:01:01]} 5. cxd5 {[%emt 0:00:29]} Nxd5 {[%emt 0:00:17]} 6. e4 {[%emt 0:02:16]} Nxc3 {[%emt 0:00:21]} 7. bxc3 {[%emt 0:00:03]} e6 {[%emt 0:00:10]} 8. Bb5+ {[%emt 0:03:24]} Nd7 {[%emt 0:02:36]} 9. Ne2 {[%emt 0:01:50]} a6 {[%emt 0:01:38]} 10. Bd3 {[%emt 0:01:42]} e5 {[%emt 0:02:22]} 11. f4 {[%emt 0:06:01]} exd4 {[%emt 0:01:14]} 12. cxd4 {[%emt 0:00:51]} Nf6 {[%emt 0:01:51]} 13. e5 {[%emt 0:10:19]} Ne4 {[%emt 0:10:51]} 14. Bxe4 {[%emt 0:07:22]} Bxe4 {[%emt 0:00:43]} 15. O-O {[%emt 0:00:18]} Qd7 {[%emt 0:01:52]} 16. Nc3 {[%emt 0:07:35]} Bb7 {[%emt 0:01:18]} 17. Be3 {[%emt 0:04:49]} O-O-O {[%emt 0:01:09]} 18. Qb3 {[%emt 0:02:20]} g6 {[%emt 0:04:25]} 19. Rac1 {[%emt 0:02:36]} h5 {[%emt 0:01:22]} 20. d5 {[%emt 0:03:47]} Kb8 {[%emt 0:02:01]} 21. d6 {[%emt 0:03:55]} Bxd6 {[%emt 0:02:25]} 22. exd6 {[%emt 0:01:01]} Qxd6 {[%emt 0:00:06]} 23. Rfd1 {[%emt 0:03:22]} Qe7 {[%emt 0:01:22]} 24. Re1 {[%emt 0:04:21]} Qd6 {[%emt 0:00:54]} 25. a4 {[%emt 0:02:05]} Qc6 {[%emt 0:01:28]} 26. Qb2 {[%emt 0:01:43]} Qf6 {[%emt 0:03:00]} 27. a5 {[%emt 0:02:04]} b5 {[%emt 0:00:11]} 28. Na4 {[%emt 0:05:16]} Qxb2 {[%emt 0:00:08]} 29. Nxb2 {[%emt 0:00:05]} Rhe8 {[%emt 0:00:31]} 30. Kf2 {[%emt 0:03:01]} Re6 {[%emt 0:02:17]} 31. Rcd1 {[%emt 0:04:00]} Rd4 {[%emt 0:58:03]} 32. Rd3 Rxd3 {[%emt 0:00:00]} 33. Rd1 {[%emt 0:01:51]} Kc8 34. Nxd3 {[%emt 0:02:57]} Rd6 {[%emt 0:00:00]} 35. Rd2 {[%emt 0:00:15]} Kd8 {[%emt 0:00:00]} 36. Nc5 {[%emt 0:02:49]} Bc8 {[%emt 0:00:00]} 37. Rxd6+ {[%emt 0:04:19]} cxd6 {[%emt 0:00:00]} 38. Nd3 {[%emt 0:01:08]} Bb7 {[%emt 0:00:00]} 39. Nb4 {[%emt 0:03:20]} Kd7 {[%emt 0:00:00]} 40. g3 {[%emt 0:01:41]} Ke6 {[%emt 0:00:00]} 41. Bb6 {[%emt 0:00:28]} Kf5 {[%emt 0:00:00]} 42. Bc7 {[%emt 0:01:14]} d5 {[%emt 0:00:00]} 43. Ke3 {[%emt 0:00:21]} Kg4 {[%emt 0:00:00]} 44. Kd4 {[%emt 0:01:13]} Kh3 {[%emt 0:00:00]} 45. Bd8 {[%emt 0:00:36]} Kxh2 {[%emt 0:00:00]} 46. Bh4 {[%emt 0:00:02]} f6 {[%emt 0:00:00]} 47. f5 {[%emt 0:01:00]} gxf5 {[%emt 0:00:00]} 48. Ke3 {[%emt 0:00:28]} Kh3 {[%emt 0:00:00]} 49. Kf4 {[%emt 0:00:19]} Bc8 {[%emt 0:00:00]} 50. Nxd5 {[%emt 0:00:13]} Kg2 {[%emt 0:00:00]} 51. Bxf6 {[%emt 0:00:22]} Kf2 {[%emt 0:00:00]} 52. Be5 {[%emt 0:00:56]} Ke2 {[%emt 0:00:00]} 53. Ne7 {[%emt 0:00:27]} Bd7 {[%emt 0:00:00]} 54. Nxf5 {[%emt 0:00:10]} Kd3 {[%emt 0:00:00]} 55. Ne3 {[%emt 0:00:55]} b4 {[%emt 0:00:00]} 56. Nd1 {[%emt 0:00:17]} Kc4 {[%emt 0:00:00]} 57. Nb2+ {[%emt 0:00:46]} Kb5 {[%emt 0:00:00]} 58. Bc7 {[%emt 0:00:06]} b3 {[%emt 0:00:00]} 59. Ke4 {[%emt 0:00:25]} Kb4 {[%emt 0:00:00]} 60. Kd3 {[%emt 0:00:42]} Be6 {[%emt 0:00:00]} 61. Kd2 {[%emt 0:00:15]} Bf5 {[%emt 0:00:00]} 62. Bd8 {[%emt 0:00:26]} Bg6 {[%emt 0:00:00]} 63. Bc7 {[%emt 0:00:16]} Bf5 {[%emt 0:00:00]} 64. Bd8 {[%emt 0:00:02]} Bg6 {[%emt 0:00:00]} 65. Kc1 {[%emt 0:00:18]} Bf5 {[%emt 0:00:00]} 66. Bc7 {[%emt 0:00:04]} Bg6 {[%emt 0:00:00]} 67. Bd8 {[%emt 0:00:03]} Bf5 {[%emt 0:00:00]} 68. Nd1 {[%emt 0:01:33]} Bg4 {[%emt 0:00:00]} 69. Ne3 {[%emt 0:01:31]} Be6 {[%emt 0:00:00]} 70. Kb2 {[%emt 0:00:04]} Bf7 {[%emt 0:00:00]} 71. Bc7 {[%emt 0:00:05]} Be6 {[%emt 0:00:00]} 72. Bd8 {[%emt 0:00:02]} Bf7 {[%emt 0:00:00]} 73. Nf5 {[%emt 0:00:42]} Bg8 {[%emt 0:00:00]} 74. Bc7 {[%emt 0:00:20]} Bd5 {[%emt 0:00:00]} 75. Bd8 {[%emt 0:00:22]} Bg8 {[%emt 0:00:00]} 76. Nd4 {[%emt 0:00:24]} Bd5 {[%emt 0:00:00]} 77. Bc7 {[%emt 0:00:16]} Bc4 {[%emt 0:00:00]} 78. Bd8 {[%emt 0:00:13]} Bd5 {[%emt 0:00:00]} 79. Bb6 {[%emt 0:00:44]} Ka4 {[%emt 0:00:00]} 80. Bd8 {[%emt 0:00:17]} Kb4 {[%emt 0:00:00]} 81. Bb6 {[%emt 0:00:02]} Ka4 {[%emt 0:00:00]} 82. Ne2 {[%emt 0:00:14]} Kb4 {[%emt 0:00:00]} 83. Bd8 {[%emt 0:00:13]} Bf7 {[%emt 0:00:00]} 84. Bb6 {[%emt 0:00:02]} Ka4 {[%emt 0:00:00]} 85. Nf4 {[%emt 0:00:41]} Kb5 {[%emt 0:00:00]} 86. Nd3 {[%emt 0:00:59]} Bc4 {[%emt 0:00:00]} 87. Nc5 {[%emt 0:00:35]} Kb4 {[%emt 0:00:00]} 88. Nd7 {[%emt 0:00:34]} Be6 {[%emt 0:00:00]} 89. Ne5 {[%emt 0:00:12]} Ka4 {[%emt 0:00:00]} 90. Bc7 {[%emt 0:00:27]} Kb4 {[%emt 0:00:00]} 91. Bd8 {[%emt 0:00:05]} Bd5 {[%emt 0:00:00]} 92. Bc7 {[%emt 0:00:51]} Bg8 {[%emt 0:00:00]} 93. Bb6 {[%emt 0:00:24]} Be6 {[%emt 0:00:00]} 94. Nd3+ {[%emt 0:00:04]} Kc4 {[%emt 0:00:00]} 95. Nc5 {[%emt 0:00:16]} Kd5 {[%emt 0:00:00]} 1-0

[Event "Marshall CC FIDE Premier January 2024"]
[Site "New York"]
[Date "2024.01.07"]
[Round "4.1"]
[White "Bortnyk, Mykola"]
[Black "Zeltsan, Joseph"]
[Result "1-0"]
[ECO "B22"]
[WhiteElo "2421"]
[BlackElo "2439"]
[Annotator "RC"]
[PlyCount "94"]
[EventDate "2024.01.05"]
[EventType "swiss"]
[EventCountry "USA"]
[SourceTitle "playchess.com"]
[Source "ChessBase"]
[SourceQuality "1"]
[TimeControl "5400+30"]

1. e4 {[%emt 0:13:39]} c5 {[%emt 0:00:05]} 2. c3 {[%emt 0:00:43]} Nf6 {[%emt 0:00:24]} 3. e5 {[%emt 0:00:07]} Nd5 {[%emt 0:00:02]} 4. Bc4 {[%emt 0:00:09]} e6 {[%emt 0:01:53]} 5. Nf3 {[%emt 0:00:15]} d6 {[%emt 0:01:02]} 6. O-O {[%emt 0:01:35]} dxe5 {[%emt 0:03:38]} 7. Nxe5 {[%emt 0:00:38]} Bd6 {[%emt 0:09:19]} 8. d4 {[%emt 0:02:37]} O-O {[%emt 0:00:30]} 9. Nd2 {[%emt 0:03:25]} Qc7 {[%emt 0:01:58]} 10. Ne4 {[%emt 0:02:33]} Be7 {[%emt 0:14:53]} 11. Bb3 {[%emt 0:14:06]} cxd4 {[%emt 0:10:59]} 12. cxd4 {[%emt 0:00:25]} Nc6 {[%emt 0:00:01]} 13. Nxc6 {[%emt 0:00:56]} Qxc6 {[%emt 0:00:54]} 14. Qf3 {[%emt 0:02:13]} Rd8 {[%emt 0:07:31]} 15. Be3 {[%emt 0:00:59]} b6 {[%emt 0:17:41]} 16. Rac1 {[%emt 0:01:27]} Qe8 {[%emt 0:04:19]} 17. Bxd5 {[%emt 0:09:58]} exd5 {[%emt 0:00:02]} 18. Ng3 {[%emt 0:00:52]} Be6 {[%emt 0:19:38]} 19. Nh5 {[%emt 0:03:22]} f6 {[%emt 0:02:20]} 20. Rfe1 {[%emt 0:00:19]} Bb4 {[%emt 0:02:30]} 21. Re2 {[%emt 0:04:54]} Qf7 {[%emt 0:00:44]} 22. a3 {[%emt 0:02:50]} Bf8 {[%emt 0:00:06]} 23. Rce1 {[%emt 0:00:38]} Bd7 {[%emt 0:00:28]} 24. Bd2 {[%emt 0:02:51]} Re8 {[%emt 0:00:08]} 25. Nf4 {[%emt 0:00:25]} Rxe2 {[%emt 0:00:31]} 26. Rxe2 {[%emt 0:00:02]} Bc6 {[%emt 0:00:29]} 27. Bb4 {[%emt 0:00:43]} Re8 {[%emt 0:00:10]} 28. Bxf8 {[%emt 0:00:24]} Kxf8 {[%emt 0:00:55]} 29. h4 {[%emt 0:00:21]} Rxe2 {[%emt 0:00:47]} 30. Qxe2 {[%emt 0:00:07]} Qe7 {[%emt 0:00:31]} 31. Qc2 {[%emt 0:00:54]} Qd6 {[%emt 0:00:53]} 32. g3 {[%emt 0:00:30]} Kg8 {[%emt 0:00:34]} 33. Qf5 {[%emt 0:00:22]} Bd7 {[%emt 0:00:30]} 34. Qxd5+ {[%emt 0:00:07]} Qxd5 {[%emt 0:00:04]} 35. Nxd5 {[%emt 0:00:04]} Kf7 {[%emt 0:00:01]} 36. Ne3 {[%emt 0:00:33]} Ke6 {[%emt 0:00:27]} 37. f4 {[%emt 0:01:43]} Kd6 {[%emt 0:00:45]} 38. Kf2 {[%emt 0:00:26]} f5 {[%emt 0:01:14]} 39. h5 {[%emt 0:01:12]} Ke6 {[%emt 0:00:21]} 40. g4 {[%emt 0:00:19]} fxg4 {[%emt 0:00:12]} 41. Kg3 {[%emt 0:00:02]} Kd6 {[%emt 0:00:56]} 42. f5 {[%emt 0:00:14]} Bc8 {[%emt 0:00:25]} 43. Kf4 {[%emt 0:00:28]} Ke7 {[%emt 0:00:38]} 44. Nxg4 {[%emt 0:00:19]} Kd6 {[%emt 0:00:31]} 45. f6 {[%emt 0:01:17]} gxf6 {[%emt 0:00:18]} 46. Nxf6 {[%emt 0:00:02]} h6 {[%emt 0:00:17]} 47. Ng8 {[%emt 0:00:04]} Kd5 {[%emt 0:01:26]} 1-0